Cogmind - Beta 11 @@@ ROGUE MODE // 2022.04.04 @ 23:38:35 Player: Azken Zutik Result: Destroyed self with Grenade Launcher Performance ------------- Evolutions (0) 0 Regions Visited (1) 200 Robots Destroyed (94) 470 Value Destroyed (1374) 1374 Prototype IDs (3) 60 Alien Tech Used (0) 0 Bonus (646) 646 TOTAL SCORE: 2750 Bonus ------- High Alert Combat Kills 646 Cogmind --------- Core Integrity 0/250 Matter 255/300 Energy 265/265 System Corruption 0% Temperature Cool (0) Movement Treading (240) Ox1 Location -10/Materials Parts ------- > --- POWER (1) -------- Improved Ion Engine > --- PROPULSION (2) --- Light Treads Light Treads > --- UTILITY (2) ------ High-capacity Storage Unit > --- WEAPON (2) ------- Medium Laser Grenade Launcher > --- INVENTORY (20) --- Ion Engine Improved Ion Engine Small Matter Pod (50) Medium Matter Pod (100) Medium Matter Pod (100) Seismic Detector Targeting Computer Particle Gun Assault Rifle Assault Rifle Assault Rifle Assault Rifle Assault Rifle Assault Rifle Grenade Launcher Mining Laser Peak State ------------ > --- POWER ------------ Improved Ion Engine > --- PROPULSION ------- Light Treads Light Treads > --- UTILITY ---------- Improved Heat Sink Large Storage Unit > --- WEAPON ----------- Medium Laser Particle Gun > --- INVENTORY -------- Ion Engine Improved Ion Engine Light Treads Light Treads Small Matter Pod Medium Matter Pod Medium Matter Pod Seismic Detector Targeting Computer EM Pulse Gun Medium Laser Assault Rifle Mining Laser [Rating: 12] Favorites ----------- Power Light Ion Engine Engine Light Ion Engine Propulsion Light Treads Treads Light Treads Utility Large Storage Unit Device Seismic Detector Storage Large Storage Unit Processor Targeting Computer Weapon Assault Rifle Energy Gun Medium Laser Ballistic Gun Assault Rifle Launcher Grenade Launcher Special Weapon Mining Laser Build | -11 -10 ------- Run | Scr Mat Slots Evolved . | . . Power . | . . Propulsion . | . . Utility . | . . Weapon . | . . Parts Attached 25 | 7 18 Power 3 | 1 2 Engine 3 | 1 2 Core . | . . Reactor . | . . Propulsion 5 | 2 3 Treads 5 | 2 3 Leg . | . . Wheel . | . . Hover . | . . Flight . | . . Utility 6 | 2 4 Device 2 | 1 1 Storage 3 | 1 2 Processor 1 | . 1 Hackware . | . . Protection . | . . Artifact . | . . Weapon 11 | 2 9 Energy Gun 4 | . 4 Energy Cannon . | . . Ballistic Gun 5 | 2 3 Ballistic Cannon . | . . Launcher 1 | . 1 Special Weapon 1 | . 1 Impact Weapon . | . . Slashing Weapon . | . . Piercing Weapon . | . . Special Melee Weapon . | . . Unidentified Prototypes . | . . Parts Lost 2 | . 2 Power . | . . Propulsion . | . . Utility 1 | . 1 Weapon 1 | . 1 Highest Loss Streak 1 | . 1 To Critical Strikes . | . . Average Slot Usage (%) 99 | . 99 Engine 14 | . 14 Treads 27 | . 27 Device 13 | . 13 Storage 14 | . 14 Energy Gun 4 | . 4 Ballistic Gun 20 | . 20 Launcher 2 | . 2 Naked Turns . | . . Heaviest Build 53 | 12 53 Greatest Support 40 | 40 40 Greatest Overweight (x) 1 | . 1 Average Overweight (x) . | . . Largest Inventory Capacity 20 | 8 20 Average Capacity 15 | 5 15 Most Carried 16 | 4 16 Average Carried 6 | . 7 Final Capacity 20 | 8 20 Final Carried 16 | 4 16 Class Distribution -------------------- 94% | Mutant 5% | Scavenger-Mutant Dominant Class ---------------- Mutant | -10/Materials Resources | -11 -10 ----------- Run | Scr Mat Matter Collected 1787 | 558 1229 Remotely . | . . Salvage Created 2914 | 342 2572 Parts 221 | 29 192 Haulers Intercepted 1 | . 1 Recyclers Shooed 5 | . 5 Parts Field Recycled . | . . Retrieved Matter . | . . Parts Self-Destructed . | . . Prevented . | . . Kills | -11 -10 ------- Run | Scr Mat Combat Hostiles Destroyed 34 | . 34 Guns 22 | . 22 AOE 12 | . 12 Classes Destroyed 8 | 3 5 Worker 25 | 4 21 Builder 16 | . 16 Tunneler 16 | 9 7 Hauler 1 | . 1 Recycler 9 | 1 8 Watcher 3 | . 3 Swarmer 3 | . 3 Grunt 31 | . 31 Best Kill Streak 6 | 4 6 Combat Bots Only 3 | . 3 Max Kills in Single Turn 3 | 1 3 Gunslinging . | . . Exploded 1 | . 1 Melee . | . . Uniques/NPCs Destroyed . | . . Combat | -11 -10 -------- Run | Scr Mat Damage Taken 1042 | . 1042 Core 254 | . 254 Absorbed by Shields . | . . Core Remaining (%) 100 | 100 . Volleys Fired 312 | 47 265 Largest 2 | 2 2 Hottest 115 | 40 115 Shots Fired 577 | 94 483 Gun 538 | 94 444 Cannon . | . . Launcher 36 | . 36 Special 3 | . 3 Kinetic 389 | 94 295 Thermal 152 | . 152 Explosive 36 | . 36 Electromagnetic . | . . Robot Hit Streak 16 | 8 16 Robot Miss Streak 4 | 4 4 Penetration Max . | . . Secondary Targets 3 | . 3 Max Gunslinging Chain 1 | . 1 Shots Hit Robots 296 | 48 248 Core Hits 150 | 20 130 Critical Kills 1 | . 1 Critical Parts Destroyed 1 | 1 . Critical Strikes 9 | 1 8 Burn 7 | . 7 Destroy 2 | 1 1 Melee Attacks . | . . Impact . | . . Slashing . | . . Piercing . | . . Sneak Attacks . | . . Combat Hostiles . | . . Follow-up Attacks . | . . Damage Inflicted 4787 | 560 4227 Guns 3502 | 560 2942 Cannons . | . . Explosions 1270 | . 1270 Melee . | . . Ramming 15 | . 15 Kinetic 2306 | 560 1746 Thermal 1196 | . 1196 Explosive 1270 | . 1270 Electromagnetic . | . . Impact . | . . Slashing . | . . Piercing . | . . Highest Corruption . | . . Average Corruption . | . . Corruption Purged . | . . Corruption Blocked . | . . Overload Shots . | . . Overflow Damage 40 | . 40 Projectiles . | . . Explosions 40 | . 40 Melee . | . . Knockbacks . | . . Impact . | . . Kinetic . | . . Secondary . | . . Self-Inflicted Damage 194 | . 194 Shots 7 | . 7 Rammed 1 | . 1 Targets Rammed 2 | . 2 Kicked . | . . Crushed 1 | . 1 Highest Temperature 432 | . 432 Average Temperature 54 | . 54 Received Heat Transfer 417 | . 417 Effects 4 | . 4 Shutdowns 1 | . 1 Energy Bleed 1 | . 1 Interference 2 | . 2 Siege Activations . | . . Robots Corrupted . | . . Combat Hostiles . | . . Parts Fried . | . . Impact Corruptions . | . . Robots Melted . | . . Combat Hostiles . | . . Parts Melted 7 | . 7 Heat Transferred 3663 | . 3663 Parts Sabotaged . | . . Parts Stolen . | . . Parts Stripped . | . . Power Chain Reactions . | . . Missiles Intercepted . | . . Alert | -11 -10 ------- Run | Scr Mat Peak Influence 1711 | 70 1711 Initial . | . . Average 329 | 26 351 Maximum Alert Level 5 | . 5 Low Security (%) 70 | 100 68 Level 1 3 | . 3 Level 2 1 | . 1 Level 3 7 | . 8 Level 4 16 | . 17 Level 5 . | . . High Security . | . . Max Security . | . . Squads Dispatched 11 | . 11 Investigation 10 | . 10 Extermination . | . . Reinforcement 1 | . 1 Assault . | . . Garrison . | . . Intercept . | . . Searches Triggered . | . . Construction Impeded . | . . Haulers Reinforced . | . . Active Scanning Responses . | . . Cargo Convoy Interrupts . | . . Stealth | -11 -10 --------- Run | Scr Mat Distress Signals . | . . Communications Jammed . | . . Distress Signals . | . . Times Spotted 41 | . 41 Peak Tracking Total 4 | . 4 Tactical Retreats . | . . Traps | -11 -10 ------- Run | Scr Mat Traps Triggered 2 | . 2 Indirectly . | . . Trap Hack Attempts . | . . Triggered . | . . Disarmed . | . . Reprogrammed . | . . Reused . | . . Traps Extracted . | . . Installed . | . . Triggered . | . . Machines | -11 -10 ---------- Run | Scr Mat Machines Disabled 25 | . 25 Max in Single Turn 3 | . 3 Machines Sabotaged . | . . Garrisons Compromised . | . . Overloaded Fab Kills . | . . Hacking | -11 -10 --------- Run | Scr Mat Machines Accessed 10 | . 10 Terminals 7 | . 7 Fabricators . | . . Repair Stations 1 | . 1 Recycling Units 2 | . 2 Scanalyzers . | . . Garrison Access . | . . Total Hacks 39 | . 39 Successful 28 | . 28 Failed 11 | . 11 Catastrophic 1 | . 1 Database Lockouts . | . . Manual 17 | . 17 Terminals 25 | . 25 Fabricators . | . . Repair Stations 12 | . 12 Recycling Units 2 | . 2 Scanalyzers . | . . Garrison Access . | . . Terminal Hacks 6 | . 6 Robot Analysis 2 | . 2 Prototype ID Bank 2 | . 2 Branch Access Points 1 | . 1 Registered Components 1 | . 1 Fabricator Hacks . | . . Repair Station Hacks 12 | . 12 Scan Component 12 | . 12 Recycling Unit Hacks . | . . Scanalyzer . | . . Garrison Access Hacks . | . . Unauthorized Hacks 10 | . 10 Terminals 8 | . 8 Botnet 2 | . 2 Sabotage 1 | . 1 Search 5 | . 5 Fabricators . | . . Repair Stations . | . . Recycling Units 2 | . 2 Tunnel 2 | . 2 Scanalyzers . | . . Garrison Access . | . . Data Cores Recovered . | . . Used . | . . Hacking Detections 6 | . 6 Full Trace Events 2 | . 2 Feedback Events . | . . Feedback Blocked . | . . Robot Schematics Acquired . | . . Robots Built . | . . Authchips . | . . Time . | . . Total Robot Build Rating . | . . Part Schematics Acquired . | . . Parts Built . | . . Authchips . | . . Time . | . . Total Part Build Rating . | . . Parts Repaired . | . . Time . | . . Parts Recycled . | . . Recycled Matter . | . . Retrieved Matter . | . . Retrieved Components . | . . Parts Scanalyzed . | . . Part Schematics Acquired . | . . Parts Damaged . | . . Bothacking | -11 -10 ------------ Run | Scr Mat Used RIF Installer . | . . Robots Hacked . | . . Non-combat . | . . Combat . | . . Robot Hacks Applied . | . . Relay Couplers Released . | . . Fabnet Peak Effective % . | . . Robots Rewired . | . . Allies Hacked . | . . Hacks Repelled . | . . Allies | -11 -10 -------- Run | Scr Mat Total Allies . | . . Largest Group . | . . Highest-Rated Group . | . . Highest-Rated Ally . | . . Total Orders . | . . Ally Attacks . | . . Total Damage . | . . Kills . | . . Allies Corrupted . | . . Allies Melted . | . . Intel | -11 -10 ------- Run | Scr Mat Robot Analysis Total 2 | . 2 Derelict Logs Recovered . | . . Drone Launches . | . . Drone Recoveries . | . . Exploration | -11 -10 ------------- Run | Scr Mat Turns Passed 9186 | 640 8546 Spaces Moved 1342 | 197 1145 Core 79 | 79 . Treads 1263 | 118 1145 Legs . | . . Wheels . | . . Hover . | . . Flight . | . . Fastest Speed 50 | 50 160 Average Speed 190 | 115 203 Slowest Speed 240 | 160 240 Overloaded Moves . | . . Propulsion Burnouts . | . . Robots Hopped . | . . Cave-ins Triggered . | . . Exploration Rate (%) 48 | 3 94 Regions Visited 1 Branch Regions . Pre-discovered Areas 2 | . 2 Known Exits Taken . | . . Unknown Exits Taken 1 | 1 . Scrap Searched . | . . Spaces Dug 17 | . 17 Terrain Destroyed 292 | . 292 Melee . | . . Projectile . | . . AOE 292 | . 292 Terrain Rammed . | . . Walls Destroyed . | . . Machines Disabled . | . . Actions | -11 -10 --------- Run | Scr Mat Total 7419 | 521 6898 Wait 5706 | 267 5439 Move 1341 | 196 1145 Hop . | . . Pick Up 23 | 4 19 Fast Attach 11 | 7 4 Attach 2 | . 2 Detach . | . . Swap 12 | . 12 Drop 10 | . 10 Fire 312 | 47 265 Melee . | . . Ram . | . . Kick . | . . Crush 2 | . 2 Escape Stasis . | . . Rewire . | . . Trap . | . . Miscellaneous . | . . Route ------- -11/Scrapyard -10/Materials (discovered 4 exits: [*Mat x3] / *Min) History --------- Turn | Location | Event 13 | -11/Scrapyard | Discovered new exit (range 16) 641 | -11/Scrapyard | Entered Materials 642 | -10/Materials | Build established: Mutant 6618 | -10/Materials | Discovered new exit (range 12) 6655 | -10/Materials | Identified exit to Mines 7410 | -10/Materials | Core integrity fell below 50% 7574 | -10/Materials | Build established: Scavenger-Mutant 7649 | -10/Materials | Discovered new exit (range 12) 8084 | -10/Materials | Build established: Mutant 8624 | -10/Materials | Core integrity fell below 20% 8835 | -10/Materials | Discovered new exit (range 10) 9187 | -10/Materials | Destroyed self with Grenade Launcher Last Messages --------------- 08657_ U-05 Engineer lays Concrete. 08660_ The unstable cave ceiling collapses. 08667_ K-01 Serf collects debris. 08730_ K-01 Serf cleans the Terminal. 08734_ Connecting with Terminal... 08781_ K-01 Serf collects debris. 08787_ Extracted 1 matter. 08806_ Acquired 17 matter. 08835_ EXIT=FOUND 08844_ Acquired 110 matter. 08893_ K-01 Serf cleans the Pressure Siphon. 09103_ Crushed K-01 Serf. 09103_ K-01 Serf destroyed. 09132_ Atomic Centrifuge disabled. 09153_ Acquired 20 matter. 09184_ The unstable cave ceiling collapses. 09185_ Imp. Heat Sink destroyed. 09185_ Destroyed Imp. Heat Sink. 09185_ Tractor Beam tumbles out of recycling unit. 09185_ Electrolysis Chamber disabled. Map ----- +----------------------------------------------------+ | #???????????????# #??# #??????????? | | #?????????####### #??# #?########?? | | ########### # #??# ""T"" #?#!!**==#?? | | #??# """"" ###!! ==#?? | | % #########+###### # # #?? | | #????# # ### ###?? | | #####+### #????# # %* #???? | | + ## ##????# + #???? | | ### ! ## #?????# # #???? | | #?# ## #???### "" ##= #???? | | +### ! ## #???# "" ## * "#???? | | ## ! ## #???# # " ## != "#???? | | " ## !=[[ ## < #???# # ##== ###### | | " ## [= ## #???#*# #+###* # # | | " ## "" ######???#! * #[### ! # "" # | | ## """ ##########=!= =%%%===[** =%= # "Y # | | #### """ +% *%! %! %[ =%[!%*= [= * =#="" # | | ???# #### ####### ######+## +[[ # | | ???##+######??# #??# # %= %#* # | | ????# #??????## ##?# !! # !!# # # | | ????# ######## #?# ! # ##!! # | | ##??# #?# """ ## #### # | | #??# #?# "" "" # #?###### | | #### ####?# "" Y" # #??????? | | + + ! " # #?????? | | ################### @ # ##?????? | | #?????????????????#### ### ##?????? | | #????????????????????## ### #??????? | | ##?????????????????????##?????### ##???????? | | | | | | | | | | | | | | | | | | | | | | | | | | | | | | | | | | | | | | | | | | | +----------------------------------------------------+ Best States ------------- Heat Dissipation 39 Energy Generation 12 Energy Capacity 265 Matter Stores 300 Matter Capacity 300 Sight Range 16 Terrain Scan Density 10 Evasion (%) 50 Targeting Accuracy 5 Recoil Reduction 2 Item Schematics ----------------- None Robot Schematics ------------------ None Fabricated ------------ Nothing Alien Tech Used ----------------- None Achievements -------------- None Challenges ------------ None Game ------ Seed MissilePointBlaster Manual? 0 Play Time 00:29:11 Cumulative 261.7 hours Start 2022.04.04 @ 23:16:30 End 2022.04.04 @ 23:38:35 Sessions 1 Manual Loads 0 Difficulty Rogue Special Mode None Game No. 74 Rogue 74 Adventurer 0 Explorer 0 Win Type - Total 6 Types 3/1/0/0/2/0/0/0/0 Lore% 58 Gallery% 71 Achievement% 65 Wizard Run 0 Options --------- ASCII 0 Keyboard 0 Movement Arrows Keybinds 0 Fullscreen 0 Font 28/SmallcapsGlow Map View 72x54 Tactical HUD 1 Map Filters NONE Filters NONE Steam 1 RUN: caa47e38-510a-451b-867b-202a2a605b15